Department Family,Entity,Date,Expense type,Expense area,Supplier,Transaction number,Amount
BEIS,ACAS,30/06/2022,EXTERNAL LEARNING,ODHR,MYCSP LTD,POIN573,180
BEIS,ACAS,30/06/2022,EXTERNAL LEARNING,ODHR,MYCSP LTD,POIN573,180
BEIS,ACAS,30/06/2022,EXTERNAL LEARNING,ODHR,MYCSP LTD,POIN573,180
BEIS,ACAS,30/06/2022,EXTERNAL LEARNING,ODHR,MYCSP LTD,POIN573,180
BEIS,ACAS,20/06/2022,TRAINERS & GUEST SPEAKERS,ODHR,ERNST & YOUNG LLP,POIN574,4036.5
BEIS,ACAS,30/06/2022,EXTERNAL LEARNING,ODHR,KPMG LLP,POIN575,390
BEIS,ACAS,16/06/2022,CONTRACTOR OFF-PAYROLL IN IR35,STRATEGY,ALEXANDER MANN SOLUTIONS LTD,POIN576,1512.14
BEIS,ACAS,30/06/2022,TRAINERS & GUEST SPEAKERS,ODHR,PAULINE HUGHES LIMITED,POIN577,900
BEIS,ACAS,30/06/2022,AGENCY STAFF,ODHR,ALEXANDER MANN SOLUTIONS LTD,POIN578,4003.44
BEIS,ACAS,30/06/2022,LEARNING RESOURCE MATERIALS,DELIVERY,GLASSTAP LIMITED,POIN579,10800
BEIS,ACAS,31/05/2022,OTHER RESEARCH,STRATEGY,NATIONAL CENTRE FOR SOCIAL RESEARCH,POIN580,2803.2
BEIS,ACAS,30/06/2022,CONTRACTOR OFF-PAYROLL IN IR35,DDAT,ALEXANDER MANN SOLUTIONS LTD,POIN581,4958.27
BEIS,ACAS,29/06/2022,COURIERS,DDAT,RESTORE TECHNOLOGY,POIN582,1939.55
BEIS,ACAS,29/06/2022,COURIERS,DDAT,RESTORE TECHNOLOGY,POIN582,378
BEIS,ACAS,29/06/2022,COURIERS,DDAT,RESTORE TECHNOLOGY,POIN582,270
BEIS,ACAS,29/06/2022,SYSTEM/EQUIPMENT MAINTENANCE,DDAT,RESTORE TECHNOLOGY,POIN582,259.2
BEIS,ACAS,29/06/2022,PROFESSIONAL FEES,DDAT,RESTORE TECHNOLOGY,POIN582,7.2
BEIS,ACAS,29/06/2022,PROFESSIONAL FEES,DDAT,RESTORE TECHNOLOGY,POIN582,39
BEIS,ACAS,29/06/2022,PROFESSIONAL FEES,DDAT,RESTORE TECHNOLOGY,POIN582,39
BEIS,ACAS,29/06/2022,COURIERS,DDAT,RESTORE TECHNOLOGY,POIN582,13.62
BEIS,ACAS,29/06/2022,PROFESSIONAL FEES,DDAT,RESTORE TECHNOLOGY,POIN582,7.8
BEIS,ACAS,29/06/2022,PROFESSIONAL FEES,DDAT,RESTORE TECHNOLOGY,POIN582,46.8
BEIS,ACAS,05/07/2022,EXTERNAL LEARNING - CSL,ODHR,KPMG LLP,POIN583,2103.6
BEIS,ACAS,01/07/2022,PROFESSIONAL FEES,DDAT,SIRIUS OPEN SOURCE LIMITED,POIN584,1792.61
BEIS,ACAS,18/05/2022,TRAINERS & GUEST SPEAKERS,ODHR,PAULINE HUGHES LIMITED,POIN586,900
BEIS,ACAS,30/06/2022,MANAGED SERVICE Off-PAYROLL WK,DELIVERY,OPENCAST SOFTWARE EUROPE LTD,POIN587,93854.4
BEIS,ACAS,30/06/2022,MANAGED SERVICE Off-PAYROLL WK,DELIVERY,OPENCAST SOFTWARE EUROPE LTD,POIN587,29072.4
BEIS,ACAS,30/06/2022,MANAGED SERVICE Off-PAYROLL WK,DELIVERY,OPENCAST SOFTWARE EUROPE LTD,POIN587,25221.6
BEIS,ACAS,05/07/2022,IA FEES,FEP,GOVERNMENT INTERNAL AUDIT AGENCY,POIN588,14175
BEIS,ACAS,06/07/2022,EXTERNAL LEARNING,ODHR,HAPPY COMPUTERS LIMITED,POIN589,252
BEIS,ACAS,06/07/2022,EXTERNAL LEARNING,ODHR,HAPPY COMPUTERS LIMITED,POIN589,252
BEIS,ACAS,06/07/2022,EXTERNAL LEARNING,ODHR,HAPPY COMPUTERS LIMITED,POIN589,252
BEIS,ACAS,24/06/2022,PROFESSIONAL FEES,DDAT,ATOS IT SERVICES UK LIMITED,POIN590,4930.79
BEIS,ACAS,24/06/2022,SOFTWARE & LICENCES,DDAT,ATOS IT SERVICES UK LIMITED,POIN591,2249.42
BEIS,ACAS,24/06/2022,SOFTWARE & LICENCES,DDAT,ATOS IT SERVICES UK LIMITED,POIN591,11282.02
BEIS,ACAS,24/06/2022,SOFTWARE & LICENCES,DDAT,ATOS IT SERVICES UK LIMITED,POIN591,2406
BEIS,ACAS,24/06/2022,TELEPHONES,DDAT,ATOS IT SERVICES UK LIMITED,POIN591,41.98
BEIS,ACAS,24/06/2022,TELEPHONES,DDAT,ATOS IT SERVICES UK LIMITED,POIN591,98.24
BEIS,ACAS,13/06/2022,MANAGED SERVICE Off-PAYROLL WK,DELIVERY,AXIS 12 LIMITED,POIN593,108900
BEIS,ACAS,30/06/2022,MANAGED SERVICE Off-PAYROLL WK,DELIVERY,TISSKI LTD,POIN594,25878
BEIS,ACAS,07/07/2022,CONTRACTOR OFF-PAYROLL IN IR35,STRATEGY,ALEXANDER MANN SOLUTIONS LTD,POIN595,1512.14
BEIS,ACAS,30/06/2022,AGENCY STAFF,SPPC,ALEXANDER MANN SOLUTIONS LTD,POIN599,728.36
BEIS,ACAS,23/06/2022,AGENCY STAFF,SPPC,ALEXANDER MANN SOLUTIONS LTD,POIN600,728.36
BEIS,ACAS,29/06/2022,STAFF RECRUITMENT COSTS,ODHR,HAYS RECRUITMENT,POIN601,2398.96
BEIS,ACAS,29/06/2022,STAFF RECRUITMENT COSTS,ODHR,HAYS RECRUITMENT,POIN602,2132.4
BEIS,ACAS,06/07/2022,STAFF RECRUITMENT COSTS,ODHR,HAYS RECRUITMENT,POIN603,2665.5
BEIS,ACAS,06/07/2022,STAFF RECRUITMENT COSTS,ODHR,HAYS RECRUITMENT,POIN604,2132.4
BEIS,ACAS,08/07/2022,ACAS PUBLICATIONS,CAC,HH GLOBAL,POIN605,2918.68
BEIS,ACAS,13/06/2022,OCCUPATIONAL HEALTH SERVICE,FEP,FLEXIFORM BUSINESS FURNITURE LTD,POIN606,482.4
BEIS,ACAS,12/07/2022,PROFESSIONAL FEES,FEP,UK SHARED BUSINESS SERVICES LTD,POIN607,1300
BEIS,ACAS,12/07/2022,PROFESSIONAL FEES,FEP,UK SHARED BUSINESS SERVICES LTD,POIN607,1300
BEIS,ACAS,14/07/2022,EXTERNAL LEARNING,ODHR,LEADERSHIP THROUGH DATA,POIN608,474
BEIS,ACAS,26/05/2022,STAFF RECRUITMENT COSTS,ODHR,HAYS RECRUITMENT,POIN609,2137.15
BEIS,ACAS,11/05/2022,STAFF RECRUITMENT COSTS,ODHR,HAYS RECRUITMENT,POIN610,2127.65
BEIS,ACAS,11/05/2022,STAFF RECRUITMENT COSTS,ODHR,HAYS RECRUITMENT,POIN611,1595.74
BEIS,ACAS,30/06/2022,CONTRACTOR OFF-PAYROLL IN IR35,STRATEGY,ALEXANDER MANN SOLUTIONS LTD,POIN612,3024.29
BEIS,ACAS,14/07/2022,AGENCY STAFF,ODHR,ALEXANDER MANN SOLUTIONS LTD,POIN613,4003.44
BEIS,ACAS,14/07/2022,CONTRACTOR OFF-PAYROLL IN IR35,STRATEGY,ALEXANDER MANN SOLUTIONS LTD,POIN614,1512.14
BEIS,ACAS,07/07/2022,AGENCY STAFF,ODHR,ALEXANDER MANN SOLUTIONS LTD,POIN615,4003.44
BEIS,ACAS,23/06/2022,AGENCY STAFF,ODHR,ALEXANDER MANN SOLUTIONS LTD,POIN616,4003.44
BEIS,ACAS,26/05/2022,STAFF RECRUITMENT COSTS,ODHR,HAYS RECRUITMENT,POIN617,18.25
BEIS,ACAS,26/05/2022,STAFF RECRUITMENT COSTS,ODHR,HAYS RECRUITMENT,POIN617,2641.31
BEIS,ACAS,12/07/2022,OCCUPATIONAL HEALTH SERVICE,FEP,POSTURITE LTD,POIN618,609.01
BEIS,ACAS,13/06/2022,SOFTWARE & LICENCES,DELIVERY,MICROSOFT LIMITED,POIN619,19440
BEIS,ACAS,18/07/2022,EVALUATION OF OPS ACTIVITIES,DELIVERY,I F F RESEARCH,POIN620,60000
BEIS,ACAS,06/07/2022,SOFTWARE & LICENCES,DDAT,DMARCIAN EUROPE BV,POIN621,2116.68
BEIS,ACAS,06/07/2022,PROFESSIONAL FEES,DDAT,RESTORE TECHNOLOGY,POIN622,78
BEIS,ACAS,06/07/2022,PROFESSIONAL FEES,DDAT,RESTORE TECHNOLOGY,POIN622,31.2
BEIS,ACAS,06/07/2022,PROFESSIONAL FEES,DDAT,RESTORE TECHNOLOGY,POIN622,48
BEIS,ACAS,06/07/2022,PROFESSIONAL FEES,DDAT,RESTORE TECHNOLOGY,POIN622,93.6
BEIS,ACAS,06/07/2022,PROFESSIONAL FEES,DDAT,RESTORE TECHNOLOGY,POIN622,179.4
BEIS,ACAS,06/07/2022,PROFESSIONAL FEES,DDAT,RESTORE TECHNOLOGY,POIN622,38.76
BEIS,ACAS,06/07/2022,COURIERS,DDAT,RESTORE TECHNOLOGY,POIN622,612
BEIS,ACAS,06/07/2022,MEMBERSHIP FEES,DDAT,BCS (BRITISH COMPUTER SOCIETY ),POIN623,6950
BEIS,ACAS,06/07/2022,MEMBERSHIP FEES,DDAT,BCS (BRITISH COMPUTER SOCIETY ),POIN623,1390
BEIS,ACAS,19/07/2022,EXTERNAL LEARNING,ODHR,THE SCHOOL OF GOOD SERVICES LTD,POIN624,828
BEIS,ACAS,08/07/2022,PROFESSIONAL FEES,DDAT,ASTEC ASSISTIVE TEC SOLUTIONS LTD,POIN625,600
BEIS,ACAS,18/07/2022,EXTERNAL LEARNING,ODHR,QAIQ,POIN626,6600
BEIS,ACAS,18/07/2022,EXTERNAL LEARNING,ODHR,QAIQ,POIN626,6600
BEIS,ACAS,19/07/2022,OCCUPATIONAL HEALTH SERVICE,FEP,POSTURITE LTD,POIN628,473.32
BEIS,ACAS,19/07/2022,OCCUPATIONAL HEALTH SERVICE,FEP,POSTURITE LTD,POIN628,0.01
BEIS,ACAS,14/07/2022,CONTRACTOR OFF-PAYROLL IN IR35,DDAT,ALEXANDER MANN SOLUTIONS LTD,POIN630,2833.3
BEIS,ACAS,30/04/2022,PROFESSIONAL FEES,DDAT,VERSION 1 SOLUTIONS LTD,POIN631,3970.26
BEIS,ACAS,28/06/2022,SOFTWARE & LICENCES,DDAT,FRESHWORKS INC,POIN632,3759
BEIS,ACAS,21/07/2022,GOVT SOLICITORS FEES,CO,GOVERNMENT LEGAL DEPARTMENT,POIN633,2237.76
BEIS,ACAS,21/07/2022,GOVT SOLICITORS FEES,CO,GOVERNMENT LEGAL DEPARTMENT,POIN633,-2237.76
BEIS,ACAS,12/05/2022,GOVT SOLICITORS FEES,CO,GOVERNMENT LEGAL DEPARTMENT,POIN634,1269
BEIS,ACAS,12/05/2022,GOVT SOLICITORS FEES,CO,GOVERNMENT LEGAL DEPARTMENT,POIN634,-1269
BEIS,ACAS,12/07/2022,GOVT SOLICITORS FEES,CO,GOVERNMENT LEGAL DEPARTMENT,POIN635,261.12
BEIS,ACAS,21/07/2022,EXTERNAL LEARNING - CSL,ODHR,PSYSOFT LTD,POIN637,3840
BEIS,ACAS,20/07/2022,STAFF RECRUITMENT COSTS,ODHR,HAYS RECRUITMENT,POIN639,2665.5
BEIS,ACAS,20/07/2022,STAFF RECRUITMENT COSTS,ODHR,HAYS RECRUITMENT,POIN640,2132.4
BEIS,ACAS,30/06/2022,PERSONAL EXPENSE,DDAT,NAME / DESCRIPTION WITHHELD,EXPS711,72.66
BEIS,ACAS,30/06/2022,PERSONAL EXPENSE,DDAT,NAME / DESCRIPTION WITHHELD,EXPS711,160.9
BEIS,ACAS,30/06/2022,PERSONAL EXPENSE,DDAT,NAME / DESCRIPTION WITHHELD,EXPS711,25
BEIS,ACAS,30/06/2022,PERSONAL EXPENSE,DDAT,NAME / DESCRIPTION WITHHELD,EXPS711,4.4
BEIS,ACAS,01/07/2022,PERSONAL EXPENSE,SOUTH&LONDON,NAME / DESCRIPTION WITHHELD,EXPS712,500.4
BEIS,ACAS,01/07/2022,PERSONAL EXPENSE,SOUTH&LONDON,NAME / DESCRIPTION WITHHELD,EXPS712,10
BEIS,ACAS,01/07/2022,PERSONAL EXPENSE,SOUTH&LONDON,NAME / DESCRIPTION WITHHELD,EXPS712,10
BEIS,ACAS,01/07/2022,PERSONAL EXPENSE,SOUTH&LONDON,NAME / DESCRIPTION WITHHELD,EXPS712,70
BEIS,ACAS,01/07/2022,PERSONAL EXPENSE,SOUTH&LONDON,NAME / DESCRIPTION WITHHELD,EXPS712,80
BEIS,ACAS,01/07/2022,PERSONAL EXPENSE,SOUTH&LONDON,NAME / DESCRIPTION WITHHELD,EXPS712,11.2
BEIS,ACAS,30/06/2022,PERSONAL EXPENSE,NORTH&MID,NAME / DESCRIPTION WITHHELD,EXPS716,233.55
BEIS,ACAS,30/06/2022,PERSONAL EXPENSE,NORTH&MID,NAME / DESCRIPTION WITHHELD,EXPS716,5
BEIS,ACAS,30/06/2022,PERSONAL EXPENSE,NORTH&MID,NAME / DESCRIPTION WITHHELD,EXPS716,15
BEIS,ACAS,30/06/2022,PERSONAL EXPENSE,NORTH&MID,NAME / DESCRIPTION WITHHELD,EXPS716,10
BEIS,ACAS,30/06/2022,PERSONAL EXPENSE,NORTH&MID,NAME / DESCRIPTION WITHHELD,EXPS716,5
BEIS,ACAS,30/06/2022,PERSONAL EXPENSE,NORTH&MID,NAME / DESCRIPTION WITHHELD,EXPS716,105
BEIS,ACAS,30/06/2022,PERSONAL EXPENSE,NORTH&MID,NAME / DESCRIPTION WITHHELD,EXPS716,10
BEIS,ACAS,02/07/2022,PERSONAL EXPENSE,DELIVERY,NAME / DESCRIPTION WITHHELD,EXPS730,449.07
BEIS,ACAS,02/07/2022,PERSONAL EXPENSE,DELIVERY,NAME / DESCRIPTION WITHHELD,EXPS730,12.6
BEIS,ACAS,02/07/2022,PERSONAL EXPENSE,DELIVERY,NAME / DESCRIPTION WITHHELD,EXPS730,10
BEIS,ACAS,02/07/2022,PERSONAL EXPENSE,DELIVERY,NAME / DESCRIPTION WITHHELD,EXPS730,70
BEIS,ACAS,02/07/2022,PERSONAL EXPENSE,DELIVERY,NAME / DESCRIPTION WITHHELD,EXPS730,16
BEIS,ACAS,02/07/2022,PERSONAL EXPENSE,DELIVERY,NAME / DESCRIPTION WITHHELD,EXPS730,10
BEIS,ACAS,05/07/2022,PERSONAL EXPENSE,SOUTH&LONDON,NAME / DESCRIPTION WITHHELD,EXPS734,6.3
BEIS,ACAS,05/07/2022,PERSONAL EXPENSE,SOUTH&LONDON,NAME / DESCRIPTION WITHHELD,EXPS734,189.9
BEIS,ACAS,05/07/2022,PERSONAL EXPENSE,SOUTH&LONDON,NAME / DESCRIPTION WITHHELD,EXPS734,9
BEIS,ACAS,05/07/2022,PERSONAL EXPENSE,SOUTH&LONDON,NAME / DESCRIPTION WITHHELD,EXPS734,3
BEIS,ACAS,05/07/2022,PERSONAL EXPENSE,SOUTH&LONDON,NAME / DESCRIPTION WITHHELD,EXPS734,30
BEIS,ACAS,05/07/2022,PERSONAL EXPENSE,SOUTH&LONDON,NAME / DESCRIPTION WITHHELD,EXPS734,10
BEIS,ACAS,05/07/2022,PERSONAL EXPENSE,SOUTH&LONDON,NAME / DESCRIPTION WITHHELD,EXPS734,3
BEIS,ACAS,05/07/2022,PERSONAL EXPENSE,SOUTH&LONDON,NAME / DESCRIPTION WITHHELD,EXPS734,2.5
BEIS,ACAS,05/07/2022,PERSONAL EXPENSE,WALES&MID,NAME / DESCRIPTION WITHHELD,EXPS743,350.1
BEIS,ACAS,05/07/2022,PERSONAL EXPENSE,WALES&MID,NAME / DESCRIPTION WITHHELD,EXPS743,35.5
BEIS,ACAS,05/07/2022,PERSONAL EXPENSE,WALES&MID,NAME / DESCRIPTION WITHHELD,EXPS743,70
BEIS,ACAS,05/07/2022,PERSONAL EXPENSE,WALES&MID,NAME / DESCRIPTION WITHHELD,EXPS743,10
BEIS,ACAS,05/07/2022,PERSONAL EXPENSE,WALES&MID,NAME / DESCRIPTION WITHHELD,EXPS743,25
BEIS,ACAS,05/07/2022,PERSONAL EXPENSE,WALES&MID,NAME / DESCRIPTION WITHHELD,EXPS743,10
BEIS,ACAS,07/07/2022,PERSONAL EXPENSE,WALES&MID,NAME / DESCRIPTION WITHHELD,EXPS745,304.2
BEIS,ACAS,07/07/2022,PERSONAL EXPENSE,WALES&MID,NAME / DESCRIPTION WITHHELD,EXPS745,53.5
BEIS,ACAS,07/07/2022,PERSONAL EXPENSE,WALES&MID,NAME / DESCRIPTION WITHHELD,EXPS745,15
BEIS,ACAS,07/07/2022,PERSONAL EXPENSE,WALES&MID,NAME / DESCRIPTION WITHHELD,EXPS745,25
BEIS,ACAS,07/07/2022,PERSONAL EXPENSE,WALES&MID,NAME / DESCRIPTION WITHHELD,EXPS745,175
BEIS,ACAS,07/07/2022,PERSONAL EXPENSE,WALES&MID,NAME / DESCRIPTION WITHHELD,EXPS745,50
BEIS,ACAS,08/07/2022,PERSONAL EXPENSE,SOUTH&LONDON,NAME / DESCRIPTION WITHHELD,EXPS750,297.9
BEIS,ACAS,08/07/2022,PERSONAL EXPENSE,SOUTH&LONDON,NAME / DESCRIPTION WITHHELD,EXPS750,70
BEIS,ACAS,08/07/2022,PERSONAL EXPENSE,SOUTH&LONDON,NAME / DESCRIPTION WITHHELD,EXPS750,10
BEIS,ACAS,08/07/2022,PERSONAL EXPENSE,SOUTH&LONDON,NAME / DESCRIPTION WITHHELD,EXPS750,10
BEIS,ACAS,08/07/2022,PERSONAL EXPENSE,SOUTH&LONDON,NAME / DESCRIPTION WITHHELD,EXPS750,10
BEIS,ACAS,08/07/2022,PERSONAL EXPENSE,SOUTH&LONDON,NAME / DESCRIPTION WITHHELD,EXPS750,25
BEIS,ACAS,08/07/2022,PERSONAL EXPENSE,SOUTH&LONDON,NAME / DESCRIPTION WITHHELD,EXPS750,24
BEIS,ACAS,11/07/2022,PERSONAL EXPENSE,NORTH&MID,NAME / DESCRIPTION WITHHELD,EXPS754,374.4
BEIS,ACAS,11/07/2022,PERSONAL EXPENSE,NORTH&MID,NAME / DESCRIPTION WITHHELD,EXPS754,10
BEIS,ACAS,11/07/2022,PERSONAL EXPENSE,NORTH&MID,NAME / DESCRIPTION WITHHELD,EXPS754,5
BEIS,ACAS,11/07/2022,PERSONAL EXPENSE,NORTH&MID,NAME / DESCRIPTION WITHHELD,EXPS754,80
BEIS,ACAS,11/07/2022,PERSONAL EXPENSE,NORTH&MID,NAME / DESCRIPTION WITHHELD,EXPS754,35
BEIS,ACAS,11/07/2022,PERSONAL EXPENSE,SOUTH&LONDON,NAME / DESCRIPTION WITHHELD,EXPS757,280.8
BEIS,ACAS,11/07/2022,PERSONAL EXPENSE,SOUTH&LONDON,NAME / DESCRIPTION WITHHELD,EXPS757,8.1
BEIS,ACAS,11/07/2022,PERSONAL EXPENSE,SOUTH&LONDON,NAME / DESCRIPTION WITHHELD,EXPS757,12
BEIS,ACAS,11/07/2022,PERSONAL EXPENSE,SOUTH&LONDON,NAME / DESCRIPTION WITHHELD,EXPS757,12.5
BEIS,ACAS,11/07/2022,PERSONAL EXPENSE,SOUTH&LONDON,NAME / DESCRIPTION WITHHELD,EXPS757,5
BEIS,ACAS,11/07/2022,PERSONAL EXPENSE,SOUTH&LONDON,NAME / DESCRIPTION WITHHELD,EXPS757,5
BEIS,ACAS,11/07/2022,PERSONAL EXPENSE,SOUTH&LONDON,NAME / DESCRIPTION WITHHELD,EXPS757,10
BEIS,ACAS,11/07/2022,PERSONAL EXPENSE,SOUTH&LONDON,NAME / DESCRIPTION WITHHELD,EXPS757,20
BEIS,ACAS,11/07/2022,PERSONAL EXPENSE,SOUTH&LONDON,NAME / DESCRIPTION WITHHELD,EXPS757,35
BEIS,ACAS,11/07/2022,PERSONAL EXPENSE,SOUTH&LONDON,NAME / DESCRIPTION WITHHELD,EXPS757,35
BEIS,ACAS,17/07/2022,PERSONAL EXPENSE,SPPC,NAME / DESCRIPTION WITHHELD,EXPS767,18
BEIS,ACAS,17/07/2022,PERSONAL EXPENSE,SPPC,NAME / DESCRIPTION WITHHELD,EXPS767,22.5
BEIS,ACAS,17/07/2022,PERSONAL EXPENSE,SPPC,NAME / DESCRIPTION WITHHELD,EXPS767,4.5
BEIS,ACAS,17/07/2022,PERSONAL EXPENSE,SPPC,NAME / DESCRIPTION WITHHELD,EXPS767,2.5
BEIS,ACAS,17/07/2022,PERSONAL EXPENSE,SPPC,NAME / DESCRIPTION WITHHELD,EXPS767,5
BEIS,ACAS,17/07/2022,PERSONAL EXPENSE,SPPC,NAME / DESCRIPTION WITHHELD,EXPS767,35
BEIS,ACAS,17/07/2022,PERSONAL EXPENSE,SPPC,NAME / DESCRIPTION WITHHELD,EXPS767,22
BEIS,ACAS,17/07/2022,PERSONAL EXPENSE,SPPC,NAME / DESCRIPTION WITHHELD,EXPS767,25
BEIS,ACAS,17/07/2022,PERSONAL EXPENSE,SPPC,NAME / DESCRIPTION WITHHELD,EXPS767,2.5
BEIS,ACAS,17/07/2022,PERSONAL EXPENSE,SPPC,NAME / DESCRIPTION WITHHELD,EXPS767,70
BEIS,ACAS,17/07/2022,PERSONAL EXPENSE,SPPC,NAME / DESCRIPTION WITHHELD,EXPS767,5
BEIS,ACAS,17/07/2022,PERSONAL EXPENSE,SPPC,NAME / DESCRIPTION WITHHELD,EXPS767,33
BEIS,ACAS,17/07/2022,PERSONAL EXPENSE,SPPC,NAME / DESCRIPTION WITHHELD,EXPS767,25
BEIS,ACAS,17/07/2022,PERSONAL EXPENSE,SPPC,NAME / DESCRIPTION WITHHELD,EXPS767,2.5
BEIS,ACAS,17/07/2022,PERSONAL EXPENSE,SPPC,NAME / DESCRIPTION WITHHELD,EXPS767,35
BEIS,ACAS,17/07/2022,PERSONAL EXPENSE,SPPC,NAME / DESCRIPTION WITHHELD,EXPS767,5
BEIS,ACAS,17/07/2022,PERSONAL EXPENSE,SPPC,NAME / DESCRIPTION WITHHELD,EXPS767,22
BEIS,ACAS,17/07/2022,PERSONAL EXPENSE,SPPC,NAME / DESCRIPTION WITHHELD,EXPS767,25
BEIS,ACAS,17/07/2022,PERSONAL EXPENSE,SPPC,NAME / DESCRIPTION WITHHELD,EXPS767,11
BEIS,ACAS,17/07/2022,PERSONAL EXPENSE,SPPC,NAME / DESCRIPTION WITHHELD,EXPS767,10
BEIS,ACAS,17/07/2022,PERSONAL EXPENSE,SPPC,NAME / DESCRIPTION WITHHELD,EXPS767,35
BEIS,ACAS,17/07/2022,PERSONAL EXPENSE,SPPC,NAME / DESCRIPTION WITHHELD,EXPS767,5
BEIS,ACAS,17/07/2022,PERSONAL EXPENSE,SPPC,NAME / DESCRIPTION WITHHELD,EXPS767,5
BEIS,ACAS,17/07/2022,PERSONAL EXPENSE,SPPC,NAME / DESCRIPTION WITHHELD,EXPS767,22
BEIS,ACAS,17/07/2022,PERSONAL EXPENSE,SPPC,NAME / DESCRIPTION WITHHELD,EXPS767,25
BEIS,ACAS,20/07/2022,PERSONAL EXPENSE,SCOTLAND,NAME / DESCRIPTION WITHHELD,EXPS788,321.75
BEIS,ACAS,20/07/2022,PERSONAL EXPENSE,SCOTLAND,NAME / DESCRIPTION WITHHELD,EXPS788,25
BEIS,ACAS,20/07/2022,PERSONAL EXPENSE,SCOTLAND,NAME / DESCRIPTION WITHHELD,EXPS788,70
BEIS,ACAS,20/07/2022,PERSONAL EXPENSE,SCOTLAND,NAME / DESCRIPTION WITHHELD,EXPS788,10
BEIS,ACAS,20/07/2022,PERSONAL EXPENSE,SCOTLAND,NAME / DESCRIPTION WITHHELD,EXPS788,10
BEIS,ACAS,20/07/2022,PERSONAL EXPENSE,SCOTLAND,NAME / DESCRIPTION WITHHELD,EXPS788,25.5
BEIS,ACAS,19/07/2022,PERSONAL EXPENSE,SPPC,NAME / DESCRIPTION WITHHELD,EXPS791,18
BEIS,ACAS,19/07/2022,PERSONAL EXPENSE,SPPC,NAME / DESCRIPTION WITHHELD,EXPS791,4.5
BEIS,ACAS,19/07/2022,PERSONAL EXPENSE,SPPC,NAME / DESCRIPTION WITHHELD,EXPS791,35
BEIS,ACAS,19/07/2022,PERSONAL EXPENSE,SPPC,NAME / DESCRIPTION WITHHELD,EXPS791,5
BEIS,ACAS,19/07/2022,PERSONAL EXPENSE,SPPC,NAME / DESCRIPTION WITHHELD,EXPS791,35
BEIS,ACAS,19/07/2022,PERSONAL EXPENSE,SPPC,NAME / DESCRIPTION WITHHELD,EXPS791,5
BEIS,ACAS,19/07/2022,PERSONAL EXPENSE,SPPC,NAME / DESCRIPTION WITHHELD,EXPS791,70
BEIS,ACAS,19/07/2022,PERSONAL EXPENSE,SPPC,NAME / DESCRIPTION WITHHELD,EXPS791,10
BEIS,ACAS,19/07/2022,PERSONAL EXPENSE,SPPC,NAME / DESCRIPTION WITHHELD,EXPS791,25
BEIS,ACAS,19/07/2022,PERSONAL EXPENSE,SPPC,NAME / DESCRIPTION WITHHELD,EXPS791,2.5
BEIS,ACAS,19/07/2022,PERSONAL EXPENSE,SPPC,NAME / DESCRIPTION WITHHELD,EXPS791,70
BEIS,ACAS,19/07/2022,PERSONAL EXPENSE,SPPC,NAME / DESCRIPTION WITHHELD,EXPS791,2.5
BEIS,ACAS,19/07/2022,PERSONAL EXPENSE,SPPC,NAME / DESCRIPTION WITHHELD,EXPS791,35
BEIS,ACAS,19/07/2022,PERSONAL EXPENSE,SPPC,NAME / DESCRIPTION WITHHELD,EXPS791,33
BEIS,ACAS,19/07/2022,PERSONAL EXPENSE,SPPC,NAME / DESCRIPTION WITHHELD,EXPS791,10
BEIS,ACAS,19/07/2022,PERSONAL EXPENSE,SPPC,NAME / DESCRIPTION WITHHELD,EXPS791,2.5
BEIS,ACAS,19/07/2022,PERSONAL EXPENSE,SPPC,NAME / DESCRIPTION WITHHELD,EXPS791,11
BEIS,ACAS,19/07/2022,PERSONAL EXPENSE,SPPC,NAME / DESCRIPTION WITHHELD,EXPS791,25
BEIS,ACAS,25/07/2022,PERSONAL EXPENSE,WALES&MID,NAME / DESCRIPTION WITHHELD,EXPS792,149.4
BEIS,ACAS,25/07/2022,PERSONAL EXPENSE,WALES&MID,NAME / DESCRIPTION WITHHELD,EXPS792,16.6
BEIS,ACAS,25/07/2022,PERSONAL EXPENSE,WALES&MID,NAME / DESCRIPTION WITHHELD,EXPS792,10
BEIS,ACAS,25/07/2022,PERSONAL EXPENSE,WALES&MID,NAME / DESCRIPTION WITHHELD,EXPS792,70
BEIS,ACAS,25/07/2022,PERSONAL EXPENSE,WALES&MID,NAME / DESCRIPTION WITHHELD,EXPS792,10
BEIS,ACAS,22/07/2022,PERSONAL EXPENSE,SOUTH&LONDON,NAME / DESCRIPTION WITHHELD,EXPS793,214.65
BEIS,ACAS,22/07/2022,PERSONAL EXPENSE,SOUTH&LONDON,NAME / DESCRIPTION WITHHELD,EXPS793,30
BEIS,ACAS,22/07/2022,PERSONAL EXPENSE,SOUTH&LONDON,NAME / DESCRIPTION WITHHELD,EXPS793,5
BEIS,ACAS,22/07/2022,PERSONAL EXPENSE,SOUTH&LONDON,NAME / DESCRIPTION WITHHELD,EXPS793,35
BEIS,ACAS,22/07/2022,PERSONAL EXPENSE,SOUTH&LONDON,NAME / DESCRIPTION WITHHELD,EXPS793,19
BEIS,ACAS,27/07/2022,PERSONAL EXPENSE,WALES&MID,NAME / DESCRIPTION WITHHELD,EXPS799,444.6
BEIS,ACAS,27/07/2022,PERSONAL EXPENSE,WALES&MID,NAME / DESCRIPTION WITHHELD,EXPS799,29.95
BEIS,ACAS,27/07/2022,PERSONAL EXPENSE,WALES&MID,NAME / DESCRIPTION WITHHELD,EXPS799,30
BEIS,ACAS,27/07/2022,PERSONAL EXPENSE,WALES&MID,NAME / DESCRIPTION WITHHELD,EXPS799,5
BEIS,ACAS,27/07/2022,PERSONAL EXPENSE,WALES&MID,NAME / DESCRIPTION WITHHELD,EXPS799,35
BEIS,ACAS,27/07/2022,PERSONAL EXPENSE,WALES&MID,NAME / DESCRIPTION WITHHELD,EXPS799,10
BEIS,ACAS,25/07/2022,PERSONAL EXPENSE,SOUTH&LONDON,NAME / DESCRIPTION WITHHELD,EXPS801,77.4
BEIS,ACAS,25/07/2022,PERSONAL EXPENSE,SOUTH&LONDON,NAME / DESCRIPTION WITHHELD,EXPS801,198.9
BEIS,ACAS,25/07/2022,PERSONAL EXPENSE,SOUTH&LONDON,NAME / DESCRIPTION WITHHELD,EXPS801,139.05
BEIS,ACAS,25/07/2022,PERSONAL EXPENSE,SOUTH&LONDON,NAME / DESCRIPTION WITHHELD,EXPS801,6.3
BEIS,ACAS,25/07/2022,PERSONAL EXPENSE,SOUTH&LONDON,NAME / DESCRIPTION WITHHELD,EXPS801,5
BEIS,ACAS,25/07/2022,PERSONAL EXPENSE,SOUTH&LONDON,NAME / DESCRIPTION WITHHELD,EXPS801,5
BEIS,ACAS,25/07/2022,PERSONAL EXPENSE,SOUTH&LONDON,NAME / DESCRIPTION WITHHELD,EXPS801,20
BEIS,ACAS,25/07/2022,PERSONAL EXPENSE,SOUTH&LONDON,NAME / DESCRIPTION WITHHELD,EXPS801,10
BEIS,ACAS,25/07/2022,PERSONAL EXPENSE,SOUTH&LONDON,NAME / DESCRIPTION WITHHELD,EXPS801,70
BEIS,ACAS,25/07/2022,PERSONAL EXPENSE,SOUTH&LONDON,NAME / DESCRIPTION WITHHELD,EXPS801,35
BEIS,ACAS,26/07/2022,PERSONAL EXPENSE,NORTH&MID,NAME / DESCRIPTION WITHHELD,EXPS802,226.8
BEIS,ACAS,26/07/2022,PERSONAL EXPENSE,NORTH&MID,NAME / DESCRIPTION WITHHELD,EXPS802,25
BEIS,ACAS,26/07/2022,PERSONAL EXPENSE,NORTH&MID,NAME / DESCRIPTION WITHHELD,EXPS802,10
BEIS,ACAS,26/07/2022,PERSONAL EXPENSE,NORTH&MID,NAME / DESCRIPTION WITHHELD,EXPS802,60
BEIS,ACAS,26/07/2022,PERSONAL EXPENSE,NORTH&MID,NAME / DESCRIPTION WITHHELD,EXPS802,49.2
BEIS,ACAS,26/07/2022,PERSONAL EXPENSE,WALES&MID,NAME / DESCRIPTION WITHHELD,EXPS807,165.6
BEIS,ACAS,26/07/2022,PERSONAL EXPENSE,WALES&MID,NAME / DESCRIPTION WITHHELD,EXPS807,29.95
BEIS,ACAS,26/07/2022,PERSONAL EXPENSE,WALES&MID,NAME / DESCRIPTION WITHHELD,EXPS807,10
BEIS,ACAS,26/07/2022,PERSONAL EXPENSE,WALES&MID,NAME / DESCRIPTION WITHHELD,EXPS807,20
BEIS,ACAS,26/07/2022,PERSONAL EXPENSE,WALES&MID,NAME / DESCRIPTION WITHHELD,EXPS807,70
BEIS,ACAS,01/07/2022,VENUE HIRE (REC VAT),NORTH&MID,CALDER CONFERENCES LTD,PINV819,162.36
BEIS,ACAS,01/07/2022,VENUE HIRE (REC VAT),NORTH&MID,CALDER CONFERENCES LTD,PINV819,62.12
BEIS,ACAS,01/07/2022,VENUE HIRE (REC VAT),SOUTH&LONDON,CALDER CONFERENCES LTD,PINV819,444
BEIS,ACAS,01/07/2022,CONFERENCE COSTS [NON - STAFF],CAC,CALDER CONFERENCES LTD,PINV819,350
BEIS,ACAS,01/07/2022,CONFERENCE COSTS [NON - STAFF],CAC,CALDER CONFERENCES LTD,PINV819,150
BEIS,ACAS,01/07/2022,CONFERENCE COSTS [NON - STAFF],CAC,CALDER CONFERENCES LTD,PINV819,150
BEIS,ACAS,01/07/2022,CONFERENCE COSTS [NON - STAFF],CAC,CALDER CONFERENCES LTD,PINV819,690
BEIS,ACAS,01/07/2022,CONFERENCE COSTS [NON - STAFF],CAC,CALDER CONFERENCES LTD,PINV819,115
BEIS,ACAS,01/07/2022,CONFERENCE COSTS [NON - STAFF],CAC,CALDER CONFERENCES LTD,PINV819,30
BEIS,ACAS,01/07/2022,CONFERENCE COSTS [NON - STAFF],CAC,CALDER CONFERENCES LTD,PINV819,135
BEIS,ACAS,28/07/2022,PERSONAL EXPENSE,WALES&MID,NAME / DESCRIPTION WITHHELD,EXPS820,190.8
BEIS,ACAS,28/07/2022,PERSONAL EXPENSE,WALES&MID,NAME / DESCRIPTION WITHHELD,EXPS820,10
BEIS,ACAS,28/07/2022,PERSONAL EXPENSE,WALES&MID,NAME / DESCRIPTION WITHHELD,EXPS820,20
BEIS,ACAS,28/07/2022,PERSONAL EXPENSE,WALES&MID,NAME / DESCRIPTION WITHHELD,EXPS820,70
BEIS,ACAS,30/06/2022,AGENCY STAFF,NORTH&MID,ALEXANDER MANN SOLUTIONS LTD,PINV820,644.69
BEIS,ACAS,17/06/2022,VENUE HIRE (REC VAT),NORTH&MID,CALDER CONFERENCES LTD,PINV823,175
BEIS,ACAS,17/06/2022,CATERING,NORTH&MID,CALDER CONFERENCES LTD,PINV823,57
BEIS,ACAS,17/06/2022,CATERING,NORTH&MID,CALDER CONFERENCES LTD,PINV823,70.8
BEIS,ACAS,17/06/2022,VENUE HIRE (REC VAT),NORTH&MID,CALDER CONFERENCES LTD,PINV823,40
BEIS,ACAS,17/06/2022,VENUE HIRE (REC VAT),NORTH&MID,CALDER CONFERENCES LTD,PINV823,40
BEIS,ACAS,17/06/2022,VENUE HIRE (REC VAT),WALES&MID,CALDER CONFERENCES LTD,PINV823,180
BEIS,ACAS,17/06/2022,VENUE HIRE (REC VAT),WALES&MID,CALDER CONFERENCES LTD,PINV823,60
BEIS,ACAS,17/06/2022,VENUE HIRE (REC VAT),WALES&MID,CALDER CONFERENCES LTD,PINV823,24
BEIS,ACAS,17/06/2022,CATERING,WALES&MID,CALDER CONFERENCES LTD,PINV823,118.8
BEIS,ACAS,17/06/2022,CATERING,WALES&MID,CALDER CONFERENCES LTD,PINV823,29.4
BEIS,ACAS,17/06/2022,CATERING,WALES&MID,CALDER CONFERENCES LTD,PINV823,25.2
BEIS,ACAS,17/06/2022,CATERING,WALES&MID,CALDER CONFERENCES LTD,PINV823,21.7
BEIS,ACAS,19/05/2022,OTHER RESEARCH,STRATEGY,INVOLVEMENT AND PARTICIPATION,PINV824,3000
BEIS,ACAS,05/07/2022,EXHIBITION COSTS,NORTH&MID,QUIET STORM SOLUTIONS LIMITED,PINV826,499.2
BEIS,ACAS,01/07/2022,PUBLICITY,STRATEGY,CISION,PINV827,2670
BEIS,ACAS,30/06/2022,PUBLICITY,STRATEGY,CISION,PINV828,420
BEIS,ACAS,24/06/2022,PROFESSIONAL FEES,FEP,GOVERNMENT PROPERTY AGENCY,PINV833,4353
BEIS,ACAS,12/05/2022,GOVT SOLICITORS FEES,ODHR,GOVERNMENT LEGAL DEPARTMENT,PINV834,40423.5
BEIS,ACAS,12/05/2022,GOVT SOLICITORS FEES,DELIVERY,GOVERNMENT LEGAL DEPARTMENT,PINV834,498.96
BEIS,ACAS,30/06/2022,SOFTWARE & LICENCES,DDAT,SPROUT SOCIAL,PINV835,22534.08
BEIS,ACAS,10/05/2022,PROFESSIONAL FEES,DDAT,GAMMA TELECOM LIMITED,PINV836,2837.06
BEIS,ACAS,08/04/2022,PROFESSIONAL FEES,DDAT,GAMMA TELECOM LIMITED,PINV838,849.18
BEIS,ACAS,23/05/2022,PROFESSIONAL FEES,DELIVERY,TISSKI LTD,PINV841,23256
BEIS,ACAS,30/06/2022,PROFESSIONAL FEES,DELIVERY,TISSKI LTD,PINV846,798
BEIS,ACAS,08/07/2022,SERVICE CHARGES,FEP,GOVERNMENT PROPERTY AGENCY,PINV848,12440.15
BEIS,ACAS,26/07/2021,MAINTENANCE (TFM2),FEP,GOVERNMENT PROPERTY AGENCY,PINV849,130724.46
BEIS,ACAS,07/07/2022,AGENCY STAFF,NORTH&MID,ALEXANDER MANN SOLUTIONS LTD,PINV851,644.69
BEIS,ACAS,30/06/2022,OCCUPATIONAL HEALTH SERVICE,ODHR,TP HEALTH LTD,PINV852,546
BEIS,ACAS,01/04/2022,NON-STAFF T & S,DELIVERY,CAROL MARTYN LTD,PINV853,825.6
BEIS,ACAS,13/07/2022,PUBLIC TRANSPORT & PARKING,SOUTH&LONDON,CORPORATE TRAVEL MANAGEMENTLIMITED,PINV854,106.25
BEIS,ACAS,13/07/2022,PUBLIC TRANSPORT & PARKING,ODHR,CORPORATE TRAVEL MANAGEMENTLIMITED,PINV854,99.75
BEIS,ACAS,13/07/2022,PUBLIC TRANSPORT & PARKING,DELIVERY,CORPORATE TRAVEL MANAGEMENTLIMITED,PINV854,-57.1
BEIS,ACAS,13/07/2022,HOTEL EXPENSES,DELIVERY,CORPORATE TRAVEL MANAGEMENTLIMITED,PINV854,1.12
BEIS,ACAS,13/07/2022,HOTEL EXPENSES,ODHR,CORPORATE TRAVEL MANAGEMENTLIMITED,PINV854,92.12
BEIS,ACAS,13/07/2022,HOTEL EXPENSES,DELIVERY,CORPORATE TRAVEL MANAGEMENTLIMITED,PINV854,1.12
BEIS,ACAS,13/07/2022,HOTEL EXPENSES,DELIVERY,CORPORATE TRAVEL MANAGEMENTLIMITED,PINV854,1.12
BEIS,ACAS,13/07/2022,HOTEL EXPENSES,DELIVERY,CORPORATE TRAVEL MANAGEMENTLIMITED,PINV854,1.12
BEIS,ACAS,13/07/2022,HOTEL EXPENSES,DELIVERY,CORPORATE TRAVEL MANAGEMENTLIMITED,PINV854,1.12
BEIS,ACAS,13/07/2022,HOTEL EXPENSES,DELIVERY,CORPORATE TRAVEL MANAGEMENTLIMITED,PINV854,1.12
BEIS,ACAS,13/07/2022,HOTEL EXPENSES,DELIVERY,CORPORATE TRAVEL MANAGEMENTLIMITED,PINV854,1.12
BEIS,ACAS,13/07/2022,HOTEL EXPENSES,DELIVERY,CORPORATE TRAVEL MANAGEMENTLIMITED,PINV854,1.12
BEIS,ACAS,13/07/2022,HOTEL EXPENSES,DELIVERY,CORPORATE TRAVEL MANAGEMENTLIMITED,PINV854,1.12
BEIS,ACAS,13/07/2022,HOTEL EXPENSES,DELIVERY,CORPORATE TRAVEL MANAGEMENTLIMITED,PINV854,1.12
BEIS,ACAS,13/07/2022,HOTEL EXPENSES,DELIVERY,CORPORATE TRAVEL MANAGEMENTLIMITED,PINV854,1.12
BEIS,ACAS,13/07/2022,HOTEL EXPENSES,DELIVERY,CORPORATE TRAVEL MANAGEMENTLIMITED,PINV854,1.12
BEIS,ACAS,13/07/2022,PUBLIC TRANSPORT & PARKING,SOUTH&LONDON,CORPORATE TRAVEL MANAGEMENTLIMITED,PINV854,72.75
BEIS,ACAS,13/07/2022,HOTEL EXPENSES,DDAT,CORPORATE TRAVEL MANAGEMENTLIMITED,PINV854,89.12
BEIS,ACAS,13/07/2022,PUBLIC TRANSPORT & PARKING,ODHR,CORPORATE TRAVEL MANAGEMENTLIMITED,PINV854,208.85
BEIS,ACAS,13/07/2022,HOTEL EXPENSES,DELIVERY,CORPORATE TRAVEL MANAGEMENTLIMITED,PINV854,91.12
BEIS,ACAS,13/07/2022,HOTEL EXPENSES,WALES&MID,CORPORATE TRAVEL MANAGEMENTLIMITED,PINV854,187.63
BEIS,ACAS,13/07/2022,PUBLIC TRANSPORT & PARKING,ODHR,CORPORATE TRAVEL MANAGEMENTLIMITED,PINV854,93.25
BEIS,ACAS,13/07/2022,PUBLIC TRANSPORT & PARKING,SOUTH&LONDON,CORPORATE TRAVEL MANAGEMENTLIMITED,PINV854,68.75
BEIS,ACAS,13/07/2022,PUBLIC TRANSPORT & PARKING,WALES&MID,CORPORATE TRAVEL MANAGEMENTLIMITED,PINV854,156.4
BEIS,ACAS,13/07/2022,PUBLIC TRANSPORT & PARKING,NORTH&MID,CORPORATE TRAVEL MANAGEMENTLIMITED,PINV854,39.05
BEIS,ACAS,13/07/2022,HOTEL EXPENSES,STRATEGY,CORPORATE TRAVEL MANAGEMENTLIMITED,PINV854,71.12
BEIS,ACAS,13/07/2022,HOTEL EXPENSES,DELIVERY,CORPORATE TRAVEL MANAGEMENTLIMITED,PINV854,71.12
BEIS,ACAS,13/07/2022,HOTEL EXPENSES,WALES&MID,CORPORATE TRAVEL MANAGEMENTLIMITED,PINV854,173.46
BEIS,ACAS,13/07/2022,HOTEL EXPENSES,ODHR,CORPORATE TRAVEL MANAGEMENTLIMITED,PINV854,71.12
BEIS,ACAS,13/07/2022,HOTEL EXPENSES,WALES&MID,CORPORATE TRAVEL MANAGEMENTLIMITED,PINV854,68.12
BEIS,ACAS,13/07/2022,HOTEL EXPENSES,FEP,CORPORATE TRAVEL MANAGEMENTLIMITED,PINV854,71.12
BEIS,ACAS,13/07/2022,HOTEL EXPENSES,SOUTH&LONDON,CORPORATE TRAVEL MANAGEMENTLIMITED,PINV854,227.27
BEIS,ACAS,13/07/2022,HOTEL EXPENSES,WALES&MID,CORPORATE TRAVEL MANAGEMENTLIMITED,PINV854,0.96
BEIS,ACAS,13/07/2022,HOTEL EXPENSES,ODHR,CORPORATE TRAVEL MANAGEMENTLIMITED,PINV854,1.12
BEIS,ACAS,13/07/2022,HOTEL EXPENSES,SPPC,CORPORATE TRAVEL MANAGEMENTLIMITED,PINV854,71.12
BEIS,ACAS,13/07/2022,HOTEL EXPENSES,NORTH&MID,CORPORATE TRAVEL MANAGEMENTLIMITED,PINV854,78.46
BEIS,ACAS,13/07/2022,PUBLIC TRANSPORT & PARKING,ODHR,CORPORATE TRAVEL MANAGEMENTLIMITED,PINV854,147.75
BEIS,ACAS,13/07/2022,PUBLIC TRANSPORT & PARKING,WALES&MID,CORPORATE TRAVEL MANAGEMENTLIMITED,PINV854,254.85
BEIS,ACAS,13/07/2022,HOTEL EXPENSES,SPPC,CORPORATE TRAVEL MANAGEMENTLIMITED,PINV854,196.62
BEIS,ACAS,13/07/2022,HOTEL EXPENSES,NORTH&MID,CORPORATE TRAVEL MANAGEMENTLIMITED,PINV854,55.53
BEIS,ACAS,13/07/2022,PUBLIC TRANSPORT & PARKING,SPPC,CORPORATE TRAVEL MANAGEMENTLIMITED,PINV854,12.25
BEIS,ACAS,13/07/2022,PUBLIC TRANSPORT & PARKING,SPPC,CORPORATE TRAVEL MANAGEMENTLIMITED,PINV854,100.75
BEIS,ACAS,13/07/2022,PUBLIC TRANSPORT & PARKING,SPPC,CORPORATE TRAVEL MANAGEMENTLIMITED,PINV854,58.15
BEIS,ACAS,13/07/2022,PUBLIC TRANSPORT & PARKING,SPPC,CORPORATE TRAVEL MANAGEMENTLIMITED,PINV854,103.75
BEIS,ACAS,13/07/2022,PUBLIC TRANSPORT & PARKING,SPPC,CORPORATE TRAVEL MANAGEMENTLIMITED,PINV854,64.25
BEIS,ACAS,13/07/2022,PUBLIC TRANSPORT & PARKING,SPPC,CORPORATE TRAVEL MANAGEMENTLIMITED,PINV854,104.75
BEIS,ACAS,13/07/2022,PUBLIC TRANSPORT & PARKING,SPPC,CORPORATE TRAVEL MANAGEMENTLIMITED,PINV854,49.75
BEIS,ACAS,13/07/2022,PUBLIC TRANSPORT & PARKING,ODHR,CORPORATE TRAVEL MANAGEMENTLIMITED,PINV854,84.75
BEIS,ACAS,13/07/2022,HOTEL EXPENSES,STRATEGY,CORPORATE TRAVEL MANAGEMENTLIMITED,PINV854,1.12
BEIS,ACAS,13/07/2022,PUBLIC TRANSPORT & PARKING,ODHR,CORPORATE TRAVEL MANAGEMENTLIMITED,PINV854,271.05
BEIS,ACAS,13/07/2022,PUBLIC TRANSPORT & PARKING,DDAT,CORPORATE TRAVEL MANAGEMENTLIMITED,PINV854,169.95
BEIS,ACAS,13/07/2022,PUBLIC TRANSPORT & PARKING,FEP,CORPORATE TRAVEL MANAGEMENTLIMITED,PINV854,56.25
BEIS,ACAS,13/07/2022,PUBLIC TRANSPORT & PARKING,SPPC,CORPORATE TRAVEL MANAGEMENTLIMITED,PINV854,63.55
BEIS,ACAS,13/07/2022,PUBLIC TRANSPORT & PARKING,SOUTH&LONDON,CORPORATE TRAVEL MANAGEMENTLIMITED,PINV854,47.65
BEIS,ACAS,13/07/2022,HOTEL EXPENSES,WALES&MID,CORPORATE TRAVEL MANAGEMENTLIMITED,PINV854,131.12
BEIS,ACAS,13/07/2022,HOTEL EXPENSES,NORTH&MID,CORPORATE TRAVEL MANAGEMENTLIMITED,PINV854,194.12
BEIS,ACAS,13/07/2022,HOTEL EXPENSES,NORTH&MID,CORPORATE TRAVEL MANAGEMENTLIMITED,PINV854,95.13
BEIS,ACAS,13/07/2022,HOTEL EXPENSES,WALES&MID,CORPORATE TRAVEL MANAGEMENTLIMITED,PINV854,217.63
BEIS,ACAS,13/07/2022,HOTEL EXPENSES,SCOTLAND,CORPORATE TRAVEL MANAGEMENTLIMITED,PINV854,80.13
BEIS,ACAS,13/07/2022,PUBLIC TRANSPORT & PARKING,SOUTH&LONDON,CORPORATE TRAVEL MANAGEMENTLIMITED,PINV854,40.65
BEIS,ACAS,13/07/2022,PUBLIC TRANSPORT & PARKING,NORTH&MID,CORPORATE TRAVEL MANAGEMENTLIMITED,PINV854,46.45
BEIS,ACAS,13/07/2022,HOTEL EXPENSES,WALES&MID,CORPORATE TRAVEL MANAGEMENTLIMITED,PINV854,1.12
BEIS,ACAS,13/07/2022,PUBLIC TRANSPORT & PARKING,DELIVERY,CORPORATE TRAVEL MANAGEMENTLIMITED,PINV854,104.75
BEIS,ACAS,13/07/2022,PUBLIC TRANSPORT & PARKING,SPPC,CORPORATE TRAVEL MANAGEMENTLIMITED,PINV854,94.6
BEIS,ACAS,13/07/2022,PUBLIC TRANSPORT & PARKING,SPPC,CORPORATE TRAVEL MANAGEMENTLIMITED,PINV854,16
BEIS,ACAS,13/07/2022,PUBLIC TRANSPORT & PARKING,SPPC,CORPORATE TRAVEL MANAGEMENTLIMITED,PINV854,66.55
BEIS,ACAS,13/07/2022,HOTEL EXPENSES,ODHR,CORPORATE TRAVEL MANAGEMENTLIMITED,PINV854,281.12
BEIS,ACAS,13/07/2022,HOTEL EXPENSES,SOUTH&LONDON,CORPORATE TRAVEL MANAGEMENTLIMITED,PINV854,70.96
BEIS,ACAS,13/07/2022,HOTEL EXPENSES,SOUTH&LONDON,CORPORATE TRAVEL MANAGEMENTLIMITED,PINV854,72.2
BEIS,ACAS,13/07/2022,HOTEL EXPENSES,NORTH&MID,CORPORATE TRAVEL MANAGEMENTLIMITED,PINV854,131.12
BEIS,ACAS,13/07/2022,HOTEL EXPENSES,SOUTH&LONDON,CORPORATE TRAVEL MANAGEMENTLIMITED,PINV854,100.12
BEIS,ACAS,13/07/2022,PUBLIC TRANSPORT & PARKING,ODHR,CORPORATE TRAVEL MANAGEMENTLIMITED,PINV854,131.85
BEIS,ACAS,13/07/2022,PUBLIC TRANSPORT & PARKING,SOUTH&LONDON,CORPORATE TRAVEL MANAGEMENTLIMITED,PINV854,117.65
BEIS,ACAS,13/07/2022,PUBLIC TRANSPORT & PARKING,DELIVERY,CORPORATE TRAVEL MANAGEMENTLIMITED,PINV854,342.85
BEIS,ACAS,13/07/2022,PUBLIC TRANSPORT & PARKING,SOUTH&LONDON,CORPORATE TRAVEL MANAGEMENTLIMITED,PINV854,17.55
BEIS,ACAS,13/07/2022,PUBLIC TRANSPORT & PARKING,SPPC,CORPORATE TRAVEL MANAGEMENTLIMITED,PINV854,77.25
BEIS,ACAS,13/07/2022,PUBLIC TRANSPORT & PARKING,CAC,CORPORATE TRAVEL MANAGEMENTLIMITED,PINV854,61.75
BEIS,ACAS,13/07/2022,PUBLIC TRANSPORT & PARKING,NORTH&MID,CORPORATE TRAVEL MANAGEMENTLIMITED,PINV854,42.25
BEIS,ACAS,13/07/2022,PUBLIC TRANSPORT & PARKING,SPPC,CORPORATE TRAVEL MANAGEMENTLIMITED,PINV854,139.45
BEIS,ACAS,13/07/2022,PUBLIC TRANSPORT & PARKING,DELIVERY,CORPORATE TRAVEL MANAGEMENTLIMITED,PINV854,17.55
BEIS,ACAS,13/07/2022,PUBLIC TRANSPORT & PARKING,SOUTH&LONDON,CORPORATE TRAVEL MANAGEMENTLIMITED,PINV854,49.05
BEIS,ACAS,13/07/2022,PUBLIC TRANSPORT & PARKING,SOUTH&LONDON,CORPORATE TRAVEL MANAGEMENTLIMITED,PINV854,27.75
BEIS,ACAS,13/07/2022,HOTEL EXPENSES,STRATEGY,CORPORATE TRAVEL MANAGEMENTLIMITED,PINV854,809.12
BEIS,ACAS,13/07/2022,PUBLIC TRANSPORT & PARKING,ODHR,CORPORATE TRAVEL MANAGEMENTLIMITED,PINV854,173.35
BEIS,ACAS,13/07/2022,PUBLIC TRANSPORT & PARKING,SPPC,CORPORATE TRAVEL MANAGEMENTLIMITED,PINV854,66.55
BEIS,ACAS,13/07/2022,PUBLIC TRANSPORT & PARKING,SPPC,CORPORATE TRAVEL MANAGEMENTLIMITED,PINV854,94.6
BEIS,ACAS,13/07/2022,HOTEL EXPENSES,WALES&MID,CORPORATE TRAVEL MANAGEMENTLIMITED,PINV854,1.12
BEIS,ACAS,13/07/2022,PUBLIC TRANSPORT & PARKING,SOUTH&LONDON,CORPORATE TRAVEL MANAGEMENTLIMITED,PINV854,-69.4
BEIS,ACAS,13/07/2022,PUBLIC TRANSPORT & PARKING,SOUTH&LONDON,CORPORATE TRAVEL MANAGEMENTLIMITED,PINV854,203.25
BEIS,ACAS,13/07/2022,HOTEL EXPENSES,SPPC,CORPORATE TRAVEL MANAGEMENTLIMITED,PINV854,71.12
BEIS,ACAS,13/07/2022,PUBLIC TRANSPORT & PARKING,DELIVERY,CORPORATE TRAVEL MANAGEMENTLIMITED,PINV854,132.35
BEIS,ACAS,13/07/2022,PUBLIC TRANSPORT & PARKING,SCOTLAND,CORPORATE TRAVEL MANAGEMENTLIMITED,PINV854,41.55
BEIS,ACAS,13/07/2022,PUBLIC TRANSPORT & PARKING,SOUTH&LONDON,CORPORATE TRAVEL MANAGEMENTLIMITED,PINV854,111.85
BEIS,ACAS,13/07/2022,HOTEL EXPENSES,DELIVERY,CORPORATE TRAVEL MANAGEMENTLIMITED,PINV854,1.12
BEIS,ACAS,13/07/2022,PUBLIC TRANSPORT & PARKING,DELIVERY,CORPORATE TRAVEL MANAGEMENTLIMITED,PINV854,36.05
BEIS,ACAS,13/07/2022,PUBLIC TRANSPORT & PARKING,DDAT,CORPORATE TRAVEL MANAGEMENTLIMITED,PINV854,81.75
BEIS,ACAS,13/07/2022,PUBLIC TRANSPORT & PARKING,SPPC,CORPORATE TRAVEL MANAGEMENTLIMITED,PINV854,188.95
BEIS,ACAS,13/07/2022,PUBLIC TRANSPORT & PARKING,SPPC,CORPORATE TRAVEL MANAGEMENTLIMITED,PINV854,189
BEIS,ACAS,13/07/2022,HOTEL EXPENSES,ODHR,CORPORATE TRAVEL MANAGEMENTLIMITED,PINV854,221.12
BEIS,ACAS,13/07/2022,HOTEL EXPENSES,ODHR,CORPORATE TRAVEL MANAGEMENTLIMITED,PINV854,231.12
BEIS,ACAS,13/07/2022,HOTEL EXPENSES,WALES&MID,CORPORATE TRAVEL MANAGEMENTLIMITED,PINV854,147.63
BEIS,ACAS,13/07/2022,PUBLIC TRANSPORT & PARKING,DELIVERY,CORPORATE TRAVEL MANAGEMENTLIMITED,PINV854,206.35
BEIS,ACAS,13/07/2022,PUBLIC TRANSPORT & PARKING,SOUTH&LONDON,CORPORATE TRAVEL MANAGEMENTLIMITED,PINV854,115.25
BEIS,ACAS,13/07/2022,PUBLIC TRANSPORT & PARKING,SOUTH&LONDON,CORPORATE TRAVEL MANAGEMENTLIMITED,PINV854,203.25
BEIS,ACAS,13/07/2022,PUBLIC TRANSPORT & PARKING,DDAT,CORPORATE TRAVEL MANAGEMENTLIMITED,PINV854,85.75
BEIS,ACAS,13/07/2022,HOTEL EXPENSES,NORTH&MID,CORPORATE TRAVEL MANAGEMENTLIMITED,PINV854,50.13
BEIS,ACAS,13/07/2022,PUBLIC TRANSPORT & PARKING,ODHR,CORPORATE TRAVEL MANAGEMENTLIMITED,PINV854,247.05
BEIS,ACAS,13/07/2022,HOTEL EXPENSES,NORTH&MID,CORPORATE TRAVEL MANAGEMENTLIMITED,PINV854,95.13
BEIS,ACAS,13/07/2022,HOTEL EXPENSES,SOUTH&LONDON,CORPORATE TRAVEL MANAGEMENTLIMITED,PINV854,58.79
BEIS,ACAS,13/07/2022,HOTEL EXPENSES,NORTH&MID,CORPORATE TRAVEL MANAGEMENTLIMITED,PINV854,95.13
BEIS,ACAS,13/07/2022,PUBLIC TRANSPORT & PARKING,DELIVERY,CORPORATE TRAVEL MANAGEMENTLIMITED,PINV854,194.85
BEIS,ACAS,13/07/2022,PUBLIC TRANSPORT & PARKING,SPPC,CORPORATE TRAVEL MANAGEMENTLIMITED,PINV854,94.6
BEIS,ACAS,13/07/2022,HOTEL EXPENSES,SOUTH&LONDON,CORPORATE TRAVEL MANAGEMENTLIMITED,PINV854,1.12
BEIS,ACAS,13/07/2022,PUBLIC TRANSPORT & PARKING,DELIVERY,CORPORATE TRAVEL MANAGEMENTLIMITED,PINV854,58.65
BEIS,ACAS,13/07/2022,PUBLIC TRANSPORT & PARKING,DELIVERY,CORPORATE TRAVEL MANAGEMENTLIMITED,PINV854,76.85
BEIS,ACAS,13/07/2022,HOTEL EXPENSES,NORTH&MID,CORPORATE TRAVEL MANAGEMENTLIMITED,PINV854,50.13
BEIS,ACAS,13/07/2022,PUBLIC TRANSPORT & PARKING,DELIVERY,CORPORATE TRAVEL MANAGEMENTLIMITED,PINV854,-588.3
BEIS,ACAS,13/07/2022,PUBLIC TRANSPORT & PARKING,DELIVERY,CORPORATE TRAVEL MANAGEMENTLIMITED,PINV854,-65
BEIS,ACAS,13/07/2022,PUBLIC TRANSPORT & PARKING,DELIVERY,CORPORATE TRAVEL MANAGEMENTLIMITED,PINV854,-61.6
BEIS,ACAS,13/07/2022,PUBLIC TRANSPORT & PARKING,SPPC,CORPORATE TRAVEL MANAGEMENTLIMITED,PINV854,2343.96
BEIS,ACAS,13/07/2022,HOTEL EXPENSES,NORTH&MID,CORPORATE TRAVEL MANAGEMENTLIMITED,PINV854,65.21
BEIS,ACAS,13/07/2022,PUBLIC TRANSPORT & PARKING,NORTH&MID,CORPORATE TRAVEL MANAGEMENTLIMITED,PINV854,24.15
BEIS,ACAS,13/07/2022,PUBLIC TRANSPORT & PARKING,ODHR,CORPORATE TRAVEL MANAGEMENTLIMITED,PINV854,199.55
BEIS,ACAS,13/07/2022,PUBLIC TRANSPORT & PARKING,DDAT,CORPORATE TRAVEL MANAGEMENTLIMITED,PINV854,37.55
BEIS,ACAS,13/07/2022,PUBLIC TRANSPORT & PARKING,NORTH&MID,CORPORATE TRAVEL MANAGEMENTLIMITED,PINV854,50.25
BEIS,ACAS,13/07/2022,PUBLIC TRANSPORT & PARKING,DDAT,CORPORATE TRAVEL MANAGEMENTLIMITED,PINV854,41.75
BEIS,ACAS,13/07/2022,HOTEL EXPENSES,SOUTH&LONDON,CORPORATE TRAVEL MANAGEMENTLIMITED,PINV854,108.12
BEIS,ACAS,13/07/2022,PUBLIC TRANSPORT & PARKING,DELIVERY,CORPORATE TRAVEL MANAGEMENTLIMITED,PINV854,61.45
BEIS,ACAS,13/07/2022,PUBLIC TRANSPORT & PARKING,DELIVERY,CORPORATE TRAVEL MANAGEMENTLIMITED,PINV854,150.25
BEIS,ACAS,13/07/2022,PUBLIC TRANSPORT & PARKING,DELIVERY,CORPORATE TRAVEL MANAGEMENTLIMITED,PINV854,160.65
BEIS,ACAS,13/07/2022,PUBLIC TRANSPORT & PARKING,ODHR,CORPORATE TRAVEL MANAGEMENTLIMITED,PINV854,129.55
BEIS,ACAS,13/07/2022,PUBLIC TRANSPORT & PARKING,DELIVERY,CORPORATE TRAVEL MANAGEMENTLIMITED,PINV854,115.95
BEIS,ACAS,13/07/2022,PUBLIC TRANSPORT & PARKING,DELIVERY,CORPORATE TRAVEL MANAGEMENTLIMITED,PINV854,17.85
BEIS,ACAS,13/07/2022,PUBLIC TRANSPORT & PARKING,DELIVERY,CORPORATE TRAVEL MANAGEMENTLIMITED,PINV854,28.75
BEIS,ACAS,13/07/2022,PUBLIC TRANSPORT & PARKING,DELIVERY,CORPORATE TRAVEL MANAGEMENTLIMITED,PINV854,151.45
BEIS,ACAS,13/07/2022,PUBLIC TRANSPORT & PARKING,DELIVERY,CORPORATE TRAVEL MANAGEMENTLIMITED,PINV854,115.95
BEIS,ACAS,13/07/2022,PUBLIC TRANSPORT & PARKING,ODHR,CORPORATE TRAVEL MANAGEMENTLIMITED,PINV854,130.05
BEIS,ACAS,13/07/2022,PUBLIC TRANSPORT & PARKING,DELIVERY,CORPORATE TRAVEL MANAGEMENTLIMITED,PINV854,156.05
BEIS,ACAS,13/07/2022,PUBLIC TRANSPORT & PARKING,CO,CORPORATE TRAVEL MANAGEMENTLIMITED,PINV854,71.25
BEIS,ACAS,13/07/2022,PUBLIC TRANSPORT & PARKING,ODHR,CORPORATE TRAVEL MANAGEMENTLIMITED,PINV854,180.55
BEIS,ACAS,13/07/2022,PUBLIC TRANSPORT & PARKING,DELIVERY,CORPORATE TRAVEL MANAGEMENTLIMITED,PINV854,64.55
BEIS,ACAS,13/07/2022,PUBLIC TRANSPORT & PARKING,SOUTH&LONDON,CORPORATE TRAVEL MANAGEMENTLIMITED,PINV854,100.75
BEIS,ACAS,13/07/2022,PUBLIC TRANSPORT & PARKING,ODHR,CORPORATE TRAVEL MANAGEMENTLIMITED,PINV854,252.25
BEIS,ACAS,13/07/2022,PUBLIC TRANSPORT & PARKING,SOUTH&LONDON,CORPORATE TRAVEL MANAGEMENTLIMITED,PINV854,197.25
BEIS,ACAS,13/07/2022,PUBLIC TRANSPORT & PARKING,ODHR,CORPORATE TRAVEL MANAGEMENTLIMITED,PINV854,116.25
BEIS,ACAS,30/06/2022,OCCUPATIONAL HEALTH SERVICE,ODHR,TP HEALTH LTD,PINV855,778.8
BEIS,ACAS,13/07/2022,PROFESSIONAL FEES,DELIVERY,DIGITAL ACCESSIBILITY CENTRE LTD,PINV857,6480
BEIS,ACAS,15/07/2022,CONFERENCE COSTS [NON - STAFF],CAC,CALDER CONFERENCES LTD,PINV858,175
BEIS,ACAS,15/07/2022,CONFERENCE COSTS [NON - STAFF],CAC,CALDER CONFERENCES LTD,PINV858,689
BEIS,ACAS,15/06/2022,STAFF RECRUITMENT COSTS,ODHR,HAYS RECRUITMENT,PINV859,2132.4
BEIS,ACAS,15/06/2022,STAFF RECRUITMENT COSTS,ODHR,HAYS RECRUITMENT,PINV860,1065.01
BEIS,ACAS,22/06/2022,STAFF RECRUITMENT COSTS,ODHR,HAYS RECRUITMENT,PINV861,2132.4
BEIS,ACAS,22/06/2022,STAFF RECRUITMENT COSTS,ODHR,HAYS RECRUITMENT,PINV862,2665.5
BEIS,ACAS,18/07/2022,CHILDCARE VOUCHERS,FEP,EDENRED CHILDCARE VOUCHERS LTD,PINV864,2043
BEIS,ACAS,07/07/2022,PROFESSIONAL FEES,FEP,GOVERNMENT PROPERTY AGENCY,PINV865,3318.05
BEIS,ACAS,07/07/2022,SERVICE CHARGES,FEP,GOVERNMENT PROPERTY AGENCY,PINV865,3276.19
BEIS,ACAS,09/07/2022,MOBILE PHONES,DDAT,TELEFONICA UK LTD (O2),PINV866,5161.04
BEIS,ACAS,09/07/2022,MOBILE PHONES,DDAT,TELEFONICA UK LTD (O2),PINV866,573.45
BEIS,ACAS,09/07/2022,MOBILE PHONES,DDAT,TELEFONICA UK LTD (O2),PINV866,5.4
BEIS,ACAS,09/07/2022,MOBILE PHONES,DDAT,TELEFONICA UK LTD (O2),PINV866,0.6
BEIS,ACAS,05/07/2022,PHOTOCOPIERS,DDAT,Canon (UK) Ltd,PINV868,3938.4
BEIS,ACAS,05/07/2022,PHOTOCOPIERS,DDAT,Canon (UK) Ltd,PINV868,437.6
BEIS,ACAS,08/07/2022,PROFESSIONAL FEES,DDAT,GAMMA TELECOM LIMITED,PINV869,4290.16
BEIS,ACAS,06/07/2022,PROFESSIONAL FEES,DDAT,W3 PARTNERSHIP LTD,PINV870,2708.75
BEIS,ACAS,15/07/2022,STAFF RECRUITMENT COSTS,ODHR,HAYS RECRUITMENT,PINV872,2132.4
BEIS,ACAS,21/07/2022,AGENCY STAFF,NORTH&MID,ALEXANDER MANN SOLUTIONS LTD,PINV873,644.69
BEIS,ACAS,21/07/2022,AGENCY STAFF,NORTH&MID,ALEXANDER MANN SOLUTIONS LTD,PINV873,644.69
BEIS,ACAS,20/07/2022,MEMBERSHIP FEES,STRATEGY,COPYRIGHT LICENSING AGENCY LTD,PINV874,6380.16
BEIS,ACAS,22/07/2022,VENUE HIRE (REC VAT),SOUTH&LONDON,CALDER CONFERENCES LTD,PINV875,600
BEIS,ACAS,22/07/2022,VENUE HIRE (REC VAT),NORTH&MID,CALDER CONFERENCES LTD,PINV875,150
BEIS,ACAS,22/07/2022,CATERING,NORTH&MID,CALDER CONFERENCES LTD,PINV875,24
BEIS,ACAS,22/07/2022,CATERING,NORTH&MID,CALDER CONFERENCES LTD,PINV875,60
BEIS,ACAS,22/07/2022,CATERING,NORTH&MID,CALDER CONFERENCES LTD,PINV875,60
BEIS,ACAS,22/07/2022,REFUNDS,SOUTH&LONDON,ADVANCED INDUSTRIAL SOLUTIONS LTD,PINV877,510
BEIS,ACAS,22/07/2022,REFUNDS,SOUTH&LONDON,ADVANCED INDUSTRIAL SOLUTIONS LTD,PINV877,255
BEIS,ACAS,24/07/2022,HIRE CAR COSTS,SOUTH&LONDON,ENTERPRISE RENT-A-CAR,PINV878,142.38
BEIS,ACAS,24/07/2022,HIRE CAR COSTS,SOUTH&LONDON,ENTERPRISE RENT-A-CAR,PINV878,26.75
BEIS,ACAS,24/07/2022,HIRE CAR COSTS,DDAT,ENTERPRISE RENT-A-CAR,PINV878,77.15
BEIS,ACAS,24/07/2022,HIRE CAR COSTS,SOUTH&LONDON,ENTERPRISE RENT-A-CAR,PINV878,118.37
BEIS,ACAS,15/07/2022,FURNITURE DISPOSALS P&L,CENTRE,EDENRED (UK GROUP ) LTD,PINV881,270
BEIS,ACAS,26/07/2022,PHOTOCOPIERS,DDAT,Canon (UK) Ltd,PINV883,619.17
BEIS,ACAS,26/07/2022,PHOTOCOPIERS,DDAT,Canon (UK) Ltd,PINV883,68.8
BEIS,ACAS,26/07/2022,PHOTOCOPIERS,DDAT,Canon (UK) Ltd,PINV883,492.48
BEIS,ACAS,26/07/2022,PHOTOCOPIERS,DDAT,Canon (UK) Ltd,PINV883,54.72
BEIS,ACAS,26/07/2022,PHOTOCOPIERS,DDAT,Canon (UK) Ltd,PINV883,566.29
BEIS,ACAS,26/07/2022,PHOTOCOPIERS,DDAT,Canon (UK) Ltd,PINV883,62.92
BEIS,ACAS,26/07/2022,PHOTOCOPIERS,DDAT,Canon (UK) Ltd,PINV883,428.26
BEIS,ACAS,26/07/2022,PHOTOCOPIERS,DDAT,Canon (UK) Ltd,PINV883,47.58
BEIS,ACAS,27/07/2022,REFUNDS,SOUTH&LONDON,THE CORPORATION OF OUNDLE SCHOOL,PINV886,255
BEIS,ACAS,12/07/2022,GOVT SOLICITORS FEES,DELIVERY,GOVERNMENT LEGAL DEPARTMENT,PINV888,645.6
BEIS,ACAS,12/07/2022,GOVT SOLICITORS FEES,DELIVERY,GOVERNMENT LEGAL DEPARTMENT,PINV888,875.52
BEIS,ACAS,12/07/2022,GOVT SOLICITORS FEES,ODHR,GOVERNMENT LEGAL DEPARTMENT,PINV888,5269.4
BEIS,ACAS,28/07/2022,AGENCY STAFF,NORTH&MID,ALEXANDER MANN SOLUTIONS LTD,PINV892,644.69
BEIS,ACAS,05/07/2022,OCCUPATIONAL HEALTH SERVICE,DELIVERY,DYSLEXIA NORTH,PINV893,925
